bitfinex/quotes_BTCUSD_20241203
["timestamp","ask_amount","ask_price","bid_price","bid_amount"]
[1733255645566,0.66544494,95491.0,95490.0,8e-07]
[1733255645791,0.65644494,95491.0,95490.0,8e-07]
[1733255646219,0.67144494,95491.0,95490.0,8e-07]
[1733255646479,0.66244494,95491.0,95490.0,8e-07]
[1733255646736,0.66244494,95491.0,95464.0,0.00656493]
[1733255646737,0.3595,95465.0,95464.0,0.00656493]
[1733255646988,0.46421259,95465.0,95464.0,0.00656493]
[1733255647867,0.46721259,95465.0,95464.0,0.00656493]
[1733255648080,0.46733565,95465.0,95464.0,0.00656493]
[1733255648971,0.209505,95463.0,95462.0,4.3e-07]
[1733255649207,0.46421759,95463.0,95462.0,4.3e-07]
[1733255650158,0.46721759,95463.0,95462.0,4.3e-07]
[1733255650848,0.70317063,95463.0,95462.0,4.3e-07]
[1733255651292,0.67165259,95463.0,95462.0,4.3e-07]
[1733255651777,0.67865259,95463.0,95462.0,4.3e-07]
[1733255655553,0.47421759,95463.0,95462.0,4.3e-07]
[1733255656243,0.47421759,95463.0,95462.0,0.00822047]
[1733255656244,0.219505,95463.0,95462.0,0.00822047]
[1733255656490,0.219505,95463.0,95462.0,0.10448547]
[1733255656720,0.219505,95463.0,95462.0,0.26407733]
[1733255656931,0.219505,95463.0,95462.0,0.31277733]
[1733255657167,0.216505,95463.0,95462.0,0.31277733]
[1733255657591,0.219505,95463.0,95462.0,0.31277733]
[1733255658039,0.216505,95463.0,95462.0,0.31277733]
[1733255658308,0.216505,95463.0,95462.0,0.31377733]
[1733255658535,0.02,95464.0,95463.0,0.18075686]
[1733255658749,0.02,95464.0,95463.0,0.32842459]
[1733255659006,0.00012306,95465.0,95463.0,0.32842459]
[1733255659007,0.00012306,95465.0,95464.0,0.1238]
[1733255659214,0.00012306,95465.0,95464.0,0.22851259]
[1733255659449,0.00012306,95465.0,95464.0,0.31300445]
[1733255660766,0.00012306,95465.0,95464.0,0.31700445]
[1733255660985,0.00012306,95465.0,95464.0,0.38757147]
[1733255661707,0.00012306,95465.0,95464.0,0.37912388]
[1733255661924,0.00112306,95465.0,95464.0,0.30955686]
[1733255666409,0.00020035,95465.0,95464.0,0.30955686]
[1733255667506,0.00192735,95465.0,95464.0,0.30955686]
[1733255667716,0.00192735,95465.0,95464.0,0.34051259]
[1733255678108,0.00192735,95465.0,95464.0,0.44522518]
[1733255678599,0.00192735,95465.0,95464.0,0.34051259]
[1733255681627,0.00192735,95465.0,95464.0,0.31042026]
[1733255682956,0.00192735,95465.0,95464.0,0.26172026]
[1733255684824,0.00192735,95465.0,95464.0,0.18662026]
[1733255685105,0.00192735,95465.0,95464.0,0.0058634]
[1733255685348,0.00192735,95465.0,95464.0,0.09035526]
[1733255685583,0.00192735,95465.0,95464.0,0.10901733]
[1733255688597,0.00088279,95465.0,95464.0,0.10901733]
[1733255689932,0.00088279,95465.0,95464.0,0.02452547]
[1733255690175,0.00088279,95465.0,95464.0,0.10901733]
[1733255692429,0.15,95466.0,95465.0,0.08449186]
[1733255692430,0.1492614,95466.0,95465.0,0.08449186]
[1733255692653,0.1492614,95466.0,95465.0,0.20128514]
[1733255693998,0.1502614,95466.0,95465.0,0.11879328]
[1733255694229,0.1502614,95466.0,95465.0,0.20328514]
[1733255696981,0.1502614,95466.0,95465.0,0.20328514]
[1733255698141,0.1502614,95466.0,95465.0,0.20728514]
[1733255698369,0.1502614,95466.0,95465.0,0.12279328]
[1733255698609,0.1502614,95466.0,95465.0,0.20728514]
[1733255704378,0.1519882,95466.0,95465.0,0.20728514]
[1733255705548,0.1519882,95466.0,95465.0,0.20469328]
[1733255705775,0.1519882,95466.0,95465.0,0.28918514]
[1733255706012,0.0027268,95466.0,95465.0,0.28918514]
[1733255706706,0.0027268,95466.0,95465.0,0.33888514]
[1733255706937,0.0027268,95466.0,95465.0,0.43294013]
[1733255708106,0.0027268,95466.0,95465.0,0.38324013]
[1733255708336,0.0027268,95466.0,95465.0,0.20728514]
[1733255710453,0.1527268,95466.0,95465.0,0.006]
[1733255711430,0.1527268,95466.0,95465.0,0.002]
[1733255711913,0.2280268,95466.0,95465.0,0.002]
[1733255713059,0.3595,95465.0,95464.0,0.00104007]
[1733255714203,0.3615,95465.0,95464.0,0.00104007]
[1733255714637,0.3615,95465.0,95464.0,0.00959331]
[1733255714874,0.3615,95465.0,95464.0,0.00104007]
[1733255715773,0.3665,95465.0,95464.0,0.00104007]
[1733255726080,0.3665,95465.0,95464.0,0.09730507]
[1733255727915,0.36042044,95465.0,95464.0,0.09730507]
[1733255731244,0.36042044,95465.0,95464.0,0.00104007]
[1733255731691,0.36042044,95465.0,95464.0,0.01921981]
[1733255732182,0.21042044,95465.0,95464.0,0.19997667]
[1733255732418,0.007,95465.0,95464.0,0.32557667]
[1733255732906,0.007,95465.0,95464.0,0.46680867]
[1733255733152,0.2112258,95466.0,95465.0,0.08449186]
[1733255733409,0.2112258,95466.0,95465.0,0.16896691]
[1733255733667,0.21092181,95466.0,95465.0,0.26306559]
[1733255734606,0.21092181,95466.0,95465.0,0.16896691]
[1733255735326,0.21092181,95466.0,95465.0,0.26506559]
[1733255735567,0.21092181,95466.0,95465.0,0.17096691]
[1733255735786,0.21092181,95466.0,95465.0,0.26506559]
[1733255736229,0.21092181,95466.0,95465.0,0.26806559]
[1733255736737,0.21092181,95466.0,95465.0,0.17396691]
[1733255736927,0.21092181,95466.0,95465.0,0.26806559]
[1733255737145,0.21092181,95466.0,95465.0,0.35937059]
[1733255737593,0.21092181,95466.0,95465.0,0.26527191]
[1733255741820,0.00142281,95466.0,95465.0,0.26527191]
[1733255750625,0.00142281,95466.0,95465.0,0.26613481]
[1733255751995,0.00142281,95466.0,95465.0,0.3708474]
[1733255752217,0.00142281,95466.0,95465.0,0.6576474]
[1733255752467,0.00142281,95466.0,95465.0,0.8576474]
[1733255753154,0.00142281,95466.0,95465.0,1.0924107]
[1733255753593,0.00142281,95466.0,95465.0,1.09237271]
[1733255753809,0.00142281,95466.0,95465.0,0.8576474]
[1733255754235,0.00142281,95466.0,95465.0,1.09235938]
[1733255755771,0.00142281,95466.0,95465.0,0.8576474]
[1733255756874,0.00142281,95466.0,95465.0,1.04536423]
[1733255758397,0.00142281,95466.0,95465.0,0.8576474]
[1733255758566,0.00142281,95466.0,95465.0,1.04536423]
[1733255758782,0.00142281,95466.0,95465.0,0.6576474]
[1733255759226,0.00142281,95466.0,95465.0,0.8576474]
[1733255760345,0.00142281,95466.0,95465.0,0.6576474]
[1733255760636,0.00142281,95466.0,95465.0,0.8576474]
[1733255761077,0.00142281,95466.0,95465.0,0.6576474]
[1733255761540,0.00142281,95466.0,95465.0,0.8576474]
[1733255762706,0.00142281,95466.0,95465.0,1.0453554]
[1733255762918,0.00142281,95466.0,95465.0,0.8806474]
[1733255763145,0.00142281,95466.0,95465.0,1.2364474]
[1733255763357,0.00142281,95466.0,95465.0,1.5180094]
[1733255763582,0.00142281,95466.0,95465.0,1.2364474]
[1733255763795,0.00142281,95466.0,95465.0,1.51791001]
[1733255764012,0.00142281,95466.0,95465.0,1.2364474]
[1733255764240,0.00142281,95466.0,95465.0,1.2344474]
[1733255764452,0.00242281,95466.0,95465.0,1.2404474]
[1733255764671,0.2111704,95491.0,95490.0,0.17579686]
[1733255764897,0.2111704,95491.0,95490.0,0.19337655]
[1733255765526,0.2111704,95491.0,95490.0,0.19297655]
[1733255766016,0.2151704,95491.0,95490.0,0.19297655]
[1733255766665,0.2171704,95491.0,95490.0,0.19297655]
[1733255773063,0.0077264,95491.0,95490.0,0.19297655]
[1733255773280,0.0077264,95491.0,95490.0,0.29768914]
[1733255773528,0.0077264,95491.0,95490.0,0.37948914]
[1733255774187,0.0077264,95491.0,95490.0,0.4732689]
[1733255774406,0.0037264,95491.0,95490.0,0.37948914]
[1733255774628,0.0027264,95491.0,95490.0,0.48019333]
[1733255774914,0.0027264,95491.0,95490.0,0.47519333]
[1733255775153,0.0027264,95491.0,95490.0,0.48219333]
[1733255775369,0.0027264,95491.0,95490.0,0.38648914]
[1733255775370,0.0037264,95491.0,95490.0,0.38648914]
[1733255775822,0.0047264,95491.0,95490.0,0.58289752]
[1733255776039,0.0047264,95491.0,95490.0,0.62974961]
[1733255776263,0.0047264,95491.0,95490.0,0.62960283]
[1733255776714,0.0047264,95491.0,95490.0,0.96280283]
[1733255776939,0.0047264,95491.0,95490.0,1.21180283]
[1733255777159,0.0047264,95491.0,95490.0,0.97768914]
[1733255777846,0.20937,95525.0,95516.0,0.17539686]
[1733255778078,0.209361,95529.0,95516.0,0.30702194]
[1733255778301,0.0266026,95533.0,95516.0,0.30702194]
[1733255778302,0.209351,95533.0,95516.0,0.50516914]
[1733255778524,0.13909175,95540.0,95516.0,0.58036914]
[1733255778792,0.075,95550.0,95516.0,0.58036914]
[1733255778793,0.209335,95541.0,95516.0,0.96758382]
[1733255779009,0.13909175,95540.0,95516.0,0.78236914]
[1733255779225,0.00202937,95517.0,95516.0,0.97225257]
[1733255779454,0.00202937,95517.0,95516.0,0.97025257]
[1733255779905,0.00202937,95517.0,95516.0,0.99808353]
[1733255780132,0.00202937,95517.0,95516.0,0.8112001]
[1733255780590,0.00202937,95517.0,95516.0,0.8082001]
[1733255780800,0.00202937,95517.0,95516.0,0.6132001]
[1733255781266,0.00302937,95517.0,95516.0,0.6222001]
[1733255781933,0.00302937,95517.0,95516.0,0.59436914]
[1733255782624,0.00302937,95517.0,95516.0,0.7809541]
[1733255783310,0.00302937,95517.0,95516.0,0.59436914]
[1733255783536,0.00302937,95517.0,95516.0,0.78088689]
[1733255783999,0.00302937,95517.0,95516.0,0.59436914]
[1733255784869,0.00302937,95517.0,95516.0,0.79436914]
[1733255785145,0.00302937,95517.0,95516.0,0.98088689]
[1733255787143,0.00302937,95517.0,95516.0,0.59436914]
[1733255788924,0.00302937,95517.0,95516.0,0.68755799]
[1733255789145,0.00302937,95517.0,95516.0,0.59436914]
[1733255789370,0.00302937,95517.0,95516.0,0.68755799]
[1733255789787,0.00302937,95517.0,95516.0,0.59436914]
[1733255791152,0.00302937,95517.0,95516.0,0.68755658]
[1733255791914,0.00302937,95517.0,95516.0,0.31916914]
[1733255792129,0.00302937,95517.0,95516.0,0.109865]
[1733255792388,0.00302937,95517.0,95516.0,0.18939686]
[1733255792847,0.20242937,95517.0,95516.0,0.18939686]
[1733255793092,0.20142937,95517.0,95516.0,0.18039686]
[1733255793371,0.15,95515.0,95512.0,0.07953186]
[1733255793613,0.209389,95516.0,95512.0,0.09707155]
[1733255793614,0.15,95513.0,95512.0,0.09707155]
[1733255795830,0.15,95513.0,95512.0,0.01753969]
[1733255796057,0.15,95513.0,95512.0,0.09807155]
[1733255796504,0.15,95513.0,95512.0,0.01953969]
[1733255798783,0.15,95513.0,95512.0,0.11540469]
[1733255801436,0.05142937,95517.0,95516.0,0.17539686]
[1733255801437,0.00202937,95517.0,95516.0,0.17539686]
[1733255801707,0.00202937,95517.0,95516.0,0.19489051]
[1733255803881,0.00302937,95517.0,95516.0,0.19489051]
[1733255804616,0.00202937,95517.0,95516.0,0.19489051]
[1733255804840,0.00302937,95517.0,95516.0,0.19489051]
[1733255805331,0.00202937,95517.0,95516.0,0.19489051]
[1733255805546,0.00202937,95517.0,95516.0,0.19889051]
[1733255806688,0.00202937,95517.0,95516.0,0.20089051]
[1733255809531,0.00202937,95517.0,95516.0,0.3056031]
[1733255813720,0.00202937,95517.0,95516.0,0.20089051]
[1733255814158,0.00194188,95517.0,95516.0,0.20089051]
[1733255821767,0.00194188,95517.0,95516.0,0.3056031]
[1733255822505,0.00194188,95517.0,95516.0,0.20089051]
[1733255823152,0.00194188,95517.0,95516.0,0.10502551]
[1733255823353,0.00194188,95517.0,95516.0,0.08553186]
[1733255824675,0.00194188,95517.0,95516.0,0.18139686]
[1733255825719,0.00101591,95517.0,95516.0,0.18139686]
[1733255831463,0.00101591,95517.0,95516.0,0.006]
[1733255831665,0.00101591,95517.0,95516.0,0.18139686]
[1733255831875,0.00101591,95517.0,95516.0,0.19953655]
[1733255835261,0.00101591,95517.0,95516.0,0.12000469]
[1733255835468,0.00101591,95517.0,95516.0,0.19953655]
[1733255836601,0.00101591,95517.0,95516.0,0.12000469]
[1733255836822,0.00101591,95517.0,95516.0,0.19953655]
[1733255837933,0.00101591,95517.0,95516.0,0.12000469]
[1733255838165,0.00101591,95517.0,95516.0,0.19953655]
[1733255839732,0.00101591,95517.0,95516.0,0.12000469]
[1733255839949,0.00101591,95517.0,95516.0,0.19953655]
[1733255840162,0.00101591,95517.0,95516.0,0.12000469]
[1733255840384,0.00101591,95517.0,95516.0,0.02413969]
[1733255841492,0.00101591,95517.0,95516.0,0.02500219]
[1733255842373,0.00101591,95517.0,95516.0,0.10453405]
[1733255844395,0.00101591,95517.0,95516.0,0.20039905]
[1733255845283,0.00101591,95517.0,95516.0,0.29443103]
[1733255847286,0.00101591,95517.0,95516.0,0.20039905]
[1733255849286,0.00101591,95517.0,95516.0,0.29445052]
[1733255849512,0.00101591,95517.0,95516.0,0.20039905]
[1733255849729,0.00101591,95517.0,95516.0,0.29444952]
[1733255849949,0.00101591,95517.0,95516.0,0.20039905]
[1733255850196,0.00101591,95517.0,95516.0,0.29444841]
[1733255850470,0.00101591,95517.0,95516.0,0.73854861]
[1733255850678,0.00101591,95517.0,95516.0,1.04680064]
[1733255850896,0.0008636,95549.0,95538.0,0.17539686]
[1733255851121,0.0008636,95549.0,95538.0,0.46959728]
[1733255851339,0.001039,95539.0,95538.0,0.66774486]
[1733255852898,0.002039,95539.0,95538.0,0.68274486]
[1733255853109,0.002039,95539.0,95538.0,0.67374486]
[1733255853336,0.002039,95539.0,95538.0,0.66774486]
[1733255853545,0.003039,95539.0,95538.0,0.67674486]
[1733255853775,0.003039,95539.0,95538.0,0.67474486]
[1733255854014,0.003039,95539.0,95538.0,0.88374486]
[1733255854497,0.0008636,95549.0,95538.0,0.88374486]
[1733255854498,0.0008636,95549.0,95548.0,0.70771486]
[1733255854709,0.0008636,95549.0,95548.0,0.83000714]
[1733255855640,0.0008636,95549.0,95548.0,1.03000714]
[1733255856092,0.0018636,95549.0,95548.0,1.03900714]
[1733255856314,0.0028636,95549.0,95548.0,1.04800714]
[1733255860943,0.001727,95577.0,95575.0,0.17539686]
[1733255861155,0.001727,95577.0,95575.0,0.19293655]
[1733255862276,0.00190294,95576.0,95575.0,0.19793655]
[1733255862913,0.00190294,95576.0,95575.0,0.30264914]
[1733255863122,0.00190294,95576.0,95575.0,0.51190814]
[1733255864682,0.00190294,95576.0,95575.0,0.50690814]
[1733255864919,0.00190294,95576.0,95575.0,0.51190814]
[1733255865142,0.00190294,95576.0,95575.0,0.50790814]
[1733255865348,0.00190294,95576.0,95575.0,0.50690814]
[1733255865558,0.00190294,95576.0,95575.0,0.51590814]
[1733255865775,0.00190294,95576.0,95575.0,0.52190814]
[1733255867789,0.00190294,95576.0,95575.0,0.60250814]
[1733255869359,0.00190294,95576.0,95575.0,0.80250814]
[1733255869566,0.00190294,95576.0,95575.0,0.92315012]
[1733255869797,0.00190294,95576.0,95575.0,1.06257273]
[1733255870458,0.00190294,95576.0,95575.0,0.83020172]
[1733255870682,0.00190294,95576.0,95575.0,0.80250814]
[1733255870887,0.00190294,95576.0,95575.0,1.03487915]
[1733255871368,0.00190294,95576.0,95575.0,0.80250814]
[1733255871574,0.00190294,95576.0,95575.0,1.14507915]
[1733255873510,0.00190294,95576.0,95575.0,0.91270814]
[1733255874623,0.00190294,95576.0,95575.0,0.91689714]
[1733255875320,0.00190294,95576.0,95575.0,0.79464486]
[1733255876388,0.00190294,95576.0,95575.0,1.00201224]
[1733255876597,0.00190294,95576.0,95575.0,0.89935745]
[1733255877236,0.00190294,95576.0,95575.0,1.12705103]
[1733255877959,0.00190294,95576.0,95575.0,1.09935745]
[1733255878177,0.05892387,95603.0,95602.0,0.17539686]
[1733255878406,0.05892387,95603.0,95602.0,0.22197765]
[1733255878847,0.05892387,95603.0,95602.0,0.17539686]
[1733255880329,0.05892387,95603.0,95602.0,0.28010945]
[1733255880546,0.05892387,95603.0,95602.0,0.28710945]
[1733255881384,0.05892387,95603.0,95602.0,0.28010945]
[1733255881591,0.05892387,95603.0,95602.0,0.33830516]
[1733255881805,0.05892387,95603.0,95602.0,0.34430516]
[1733255882013,0.05892387,95603.0,95602.0,0.33830516]
[1733255882240,0.05892387,95603.0,95602.0,0.28410945]
[1733255882674,0.05892387,95603.0,95602.0,0.28010945]
[1733255882885,0.05892387,95603.0,95602.0,0.28310945]
[1733255883308,0.05892387,95603.0,95602.0,0.28010945]
[1733255883727,0.05892387,95603.0,95602.0,0.28210945]
[1733255883964,0.05892387,95603.0,95602.0,0.36642566]
[1733255884178,0.05892387,95603.0,95602.0,0.35942566]
[1733255884385,0.05892387,95603.0,95602.0,0.36942566]
[1733255884818,0.05892387,95603.0,95602.0,0.36242566]
[1733255885028,0.05892387,95603.0,95602.0,0.36942566]
[1733255885761,0.05892387,95603.0,95602.0,0.36642566]
[1733255886197,0.05892387,95603.0,95602.0,0.4620743]
[1733255886631,0.05892387,95603.0,95602.0,0.36942566]
[1733255887262,0.05892387,95603.0,95602.0,0.46210098]
[1733255887466,0.05892387,95603.0,95602.0,0.50837911]
[1733255888363,0.05978567,95603.0,95602.0,0.50837911]
[1733255888586,0.05978567,95603.0,95602.0,0.36942566]
[1733255889505,0.05978567,95603.0,95602.0,0.26471307]
[1733255889727,0.05978567,95603.0,95602.0,0.49667671]
[1733255889938,0.05978567,95603.0,95602.0,0.18539686]
[1733255890152,0.05978567,95603.0,95602.0,0.52207309]
[1733255890375,0.05978567,95603.0,95602.0,0.51907309]
[1733255890601,0.05978567,95603.0,95602.0,0.28710945]
[1733255891055,0.05978567,95603.0,95602.0,0.28910945]
[1733255891269,0.05978567,95603.0,95602.0,0.28210945]
[1733255891705,0.05978567,95603.0,95602.0,0.18539686]
[1733255893473,0.05978567,95603.0,95602.0,0.18539686]
[1733255893729,0.05978567,95603.0,95602.0,0.20393655]
[1733255894381,0.05978567,95603.0,95602.0,0.20193655]
[1733255894583,0.05978567,95603.0,95602.0,0.20593655]
[1733255897031,0.05978567,95603.0,95602.0,0.61662127]
[1733255897273,0.05978567,95603.0,95602.0,0.20593655]
[1733255898376,0.26898367,95603.0,95602.0,0.20593655]
[1733255898811,0.05978567,95603.0,95602.0,0.20593655]
[1733255904357,0.05978567,95603.0,95602.0,0.39014914]
[1733255904568,0.00611247,95603.0,95602.0,0.39014914]
[1733255904776,0.209141,95630.0,95612.0,0.46407486]
[1733255904997,0.209141,95630.0,95612.0,0.9819062]
[1733255905210,0.209141,95630.0,95612.0,0.56878745]
[1733255905568,0.209141,95630.0,95612.0,0.98178094]
[1733255905979,0.00231268,95613.0,95612.0,0.98178094]
[1733255906308,0.00231268,95613.0,95612.0,1.00632063]
[1733255906458,0.00231268,95613.0,95612.0,0.59332714]
[1733255906666,0.00231268,95613.0,95612.0,1.25592063]
[1733255906863,0.00231268,95613.0,95612.0,0.84292714]
[1733255907688,0.00231268,95613.0,95612.0,0.85192714]
[1733255908022,0.00231268,95613.0,95612.0,0.64592714]
[1733255908211,0.00231268,95613.0,95612.0,0.65492714]
[1733255908406,0.00231268,95613.0,95612.0,0.64492714]
[1733255908831,0.00231268,95613.0,95612.0,0.65392714]
[1733255909437,0.00231268,95613.0,95612.0,0.64592714]
[1733255909879,0.0817,95652.0,95634.0,0.38452686]
[1733255910095,0.00209576,95635.0,95634.0,0.48923945]
[1733255910768,0.00209576,95635.0,95634.0,0.46639591]
[1733255910983,0.00209576,95635.0,95634.0,0.38686405]
[1733255911203,0.00209576,95635.0,95634.0,0.33366129]
[1733255911423,0.00209576,95635.0,95634.0,0.11440469]
[1733255911839,0.00209576,95635.0,95634.0,0.19393655]
[1733255912102,0.00209576,95635.0,95634.0,0.20493655]
[1733255912319,0.00209576,95635.0,95634.0,0.19693655]
[1733255912527,0.00209576,95635.0,95634.0,0.19793655]
[1733255912756,0.00209576,95635.0,95634.0,0.19993655]
[1733255913430,0.08409576,95635.0,95634.0,0.006]
[1733255913649,0.23409576,95635.0,95634.0,0.006]
[1733255914069,0.23409576,95635.0,95634.0,0.004]
[1733255914289,0.20917,95616.0,95613.0,0.095865]
[1733255914532,0.20917,95616.0,95615.0,0.17539686]
[1733255915421,0.20917,95616.0,95615.0,0.095865]
[1733255915912,0.20917,95616.0,95615.0,0.104865]
[1733255916084,0.35917,95616.0,95615.0,0.104865]
[1733255916580,0.35917,95616.0,95615.0,0.009]
[1733255917003,0.35917,95616.0,95615.0,0.02743969]
[1733255917662,0.35917,95616.0,95615.0,0.02468905]
[1733255918982,0.35917,95616.0,95615.0,0.02168905]
[1733255919194,0.35917,95616.0,95615.0,0.01843969]
[1733255919949,0.35906169,95616.0,95615.0,0.01843969]
[1733255920184,0.35906169,95616.0,95609.0,0.17539686]
[1733255920185,0.209183,95610.0,95609.0,0.17539686]
[1733255921815,0.210183,95610.0,95609.0,0.17539686]
[1733255922507,0.210183,95610.0,95597.0,0.09332297]
[1733255922508,0.209202,95601.0,95597.0,0.095865]
[1733255923185,0.418405,95601.0,95597.0,0.095865]
[1733255923682,0.418405,95601.0,95597.0,0.097865]
[1733255923913,0.418405,95601.0,95598.0,0.01773969]
[1733255924394,0.418405,95601.0,95598.0,0.09727155]
[1733255924887,0.359189,95607.0,95606.0,0.095865]
[1733255925789,0.359189,95607.0,95598.0,0.09727155]
[1733255925790,0.359189,95607.0,95601.0,0.095865]
[1733255926014,0.359189,95607.0,95598.0,0.09727155]
[1733255926015,0.209198,95603.0,95602.0,0.01977242]
[1733255926268,0.209198,95603.0,95598.0,0.07953186]
[1733255926269,0.209207,95599.0,95598.0,0.07953186]
[1733255926745,0.209207,95599.0,95598.0,0.08053186]
[1733255927197,0.418402,95602.0,95598.0,0.07953186]
[1733255927442,0.22199175,95611.0,95605.0,0.095865]
[1733255927443,0.359191,95606.0,95605.0,0.095865]
[1733255927682,0.359191,95606.0,95605.0,0.11340469]
[1733255928570,0.359191,95606.0,95605.0,0.11440469]
[1733255929908,0.359191,95606.0,95605.0,0.11540469]
[1733255933911,0.359191,95606.0,95605.0,0.01953969]
[1733255934148,0.434291,95606.0,95605.0,0.01953969]
[1733255934350,0.434291,95606.0,95605.0,0.002]
[1733255934984,0.434291,95606.0,95605.0,0.003726]
[1733255937244,0.359191,95606.0,95605.0,0.003726]
[1733255938777,0.440091,95606.0,95605.0,0.003726]
[1733255946649,0.463091,95606.0,95605.0,0.003726]
[1733255946862,0.72033859,95606.0,95605.0,0.003726]
[1733255947330,0.61620359,95606.0,95605.0,0.003726]
[1733255947771,0.72033859,95606.0,95605.0,0.001726]
[1733255948201,0.72033859,95606.0,95605.0,0.002726]
[1733255948434,0.72033859,95606.0,95605.0,0.001726]
[1733255948653,0.72033859,95606.0,95605.0,0.002726]
[1733255949318,0.61620359,95606.0,95605.0,0.002726]
[1733255956465,0.87125415,95606.0,95605.0,1e-06]
[1733255956666,0.73461214,95598.0,95597.0,6.8e-07]
[1733255956886,0.83932473,95598.0,95597.0,6.8e-07]
[1733255957105,0.83932473,95598.0,95587.0,0.0017236]
[1733255957106,0.359231,95588.0,95587.0,0.0017236]
[1733255957337,0.56894359,95588.0,95587.0,0.0017236]
[1733255957820,0.59939503,95588.0,95587.0,0.0017236]
[1733255958262,0.56894359,95588.0,95587.0,0.0017236]
[1733255958900,0.382231,95588.0,95587.0,0.0017236]
[1733255971689,0.48694359,95588.0,95587.0,0.0017236]
[1733255973583,0.382231,95588.0,95587.0,0.0017236]
[1733255976326,0.384231,95588.0,95587.0,0.0017236]
[1733255976762,0.382231,95588.0,95587.0,0.0017236]
[1733255976960,0.384231,95588.0,95587.0,0.0017236]
[1733255978062,0.389231,95588.0,95587.0,0.0017236]
[1733255978264,0.366231,95588.0,95587.0,0.0017236]
[1733255978685,0.361231,95588.0,95587.0,0.01421596]
[1733255978906,0.366231,95588.0,95587.0,0.01421596]
[1733255979318,0.364231,95588.0,95587.0,0.01421596]
[1733255979744,0.361231,95588.0,95587.0,0.01421596]
[1733255980169,0.359231,95588.0,95587.0,0.01421596]
[1733255980615,0.360231,95588.0,95587.0,0.01421596]
[1733255981024,0.364231,95588.0,95587.0,0.01421596]
[1733255981274,0.360231,95588.0,95587.0,0.01421596]
[1733255981477,0.360231,95588.0,95587.0,0.0017236]
[1733255981679,0.361231,95588.0,95587.0,0.0017236]
[1733255982093,0.362231,95588.0,95587.0,0.0017236]
[1733255983914,0.36213749,95588.0,95587.0,0.0017236]
[1733255988411,0.38513749,95588.0,95587.0,0.0017236]
[1733255989922,0.38513749,95588.0,95587.0,0.00987596]
[1733255991545,0.38513749,95588.0,95587.0,0.0017236]
[1733255997107,0.36213749,95588.0,95587.0,0.0017236]
[1733256002085,0.38513749,95588.0,95587.0,0.0017236]
[1733256004912,0.36213749,95588.0,95587.0,0.0017236]
[1733256005135,0.003,95588.0,95587.0,0.30092046]
[1733256005586,0.003,95588.0,95587.0,0.0017236]
[1733256005813,0.003,95588.0,95587.0,0.09517394]
[1733256006029,0.0805,95588.0,95587.0,0.0017236]
[1733256006301,0.0803632,95588.0,95587.0,0.0017236]
[1733256006551,0.1538632,95588.0,95587.0,0.0017236]
[1733256006765,0.1768632,95588.0,95587.0,0.0017236]
[1733256006986,0.0008632,95588.0,95587.0,0.01004596]
[1733256007224,0.0028632,95588.0,95587.0,0.10591096]
[1733256007440,0.0028632,95588.0,95587.0,0.10791096]
[1733256007884,0.0028632,95588.0,95587.0,0.10991096]
[1733256008160,0.0008632,95588.0,95587.0,0.10791096]
[1733256008391,0.0008632,95588.0,95587.0,0.11191096]
[1733256008613,0.0008632,95588.0,95587.0,0.10791096]
[1733256009071,0.0008632,95588.0,95587.0,0.56067752]
[1733256009300,0.0008632,95588.0,95587.0,0.37175541]
[1733256009541,0.0008632,95588.0,95587.0,0.37375541]
[1733256009997,0.0008632,95588.0,95587.0,0.37575541]
[1733256010448,0.0008632,95588.0,95587.0,0.37475541]
[1733256010672,0.0008632,95588.0,95587.0,0.37975541]
[1733256010902,0.0008632,95588.0,95587.0,0.32748571]
[1733256011125,0.0008632,95588.0,95587.0,0.09504519]
[1733256013574,0.209257,95576.0,95575.0,0.000354]
[1733256015907,0.209257,95576.0,95575.0,0.075854]
[1733256016930,0.209257,95576.0,95575.0,0.076854]
[1733256017674,0.209257,95576.0,95575.0,0.000354]
[1733256018129,0.209257,95576.0,95575.0,0.002354]
[1733256018802,0.209257,95576.0,95575.0,0.0040804]
[1733256019247,0.232257,95576.0,95575.0,0.0020804]
[1733256019467,0.382257,95576.0,95575.0,0.0030804]
[1733256019714,0.48696959,95576.0,95575.0,0.0030804]
[1733256019958,0.48696959,95576.0,95575.0,0.0020804]
[1733256020199,0.382257,95576.0,95575.0,0.0030804]
[1733256020451,0.382257,95576.0,95575.0,0.0020804]
[1733256020660,0.023,95596.0,95579.0,0.095865]
[1733256020879,0.209242,95583.0,95580.0,0.01774773]
[1733256021108,0.209233,95587.0,95583.0,0.0759]
[1733256021326,0.209233,95587.0,95584.0,0.095865]
[1733256021820,0.15,95586.0,95584.0,0.095865]
[1733256022041,0.35897416,95585.0,95584.0,0.095865]
[1733256022611,0.209227,95590.0,95585.0,0.095865]
[1733256022832,0.023,95596.0,95585.0,0.095865]
[1733256023049,0.023,95596.0,95586.0,0.07953186]
[1733256023050,0.210233,95587.0,95586.0,0.07953186]
[1733256023489,0.209225,95591.0,95586.0,0.07953186]
[1733256023675,0.209225,95591.0,95586.0,0.1728185]
[1733256023938,0.21118839,95588.0,95586.0,0.1728185]
[1733256024162,0.21118839,95588.0,95586.0,0.07953186]
[1733256024381,0.001,95587.0,95586.0,0.07953186]
[1733256024619,0.001,95587.0,95586.0,0.17539686]
[1733256024841,0.001,95587.0,95586.0,0.2686835]
[1733256025054,0.001,95587.0,95586.0,0.17539686]
[1733256025500,0.00095539,95588.0,95586.0,0.07953186]
[1733256025768,0.00295539,95588.0,95586.0,0.17273732]
[1733256025982,0.15,95586.0,95585.0,0.09320546]
[1733256026192,0.209237,95585.0,95584.0,0.09320546]
[1733256026410,0.209237,95585.0,95583.0,0.09320546]
[1733256026618,0.20924,95584.0,95581.0,0.18907046]
[1733256026833,0.20924,95584.0,95581.0,0.095865]
[1733256027054,0.41848,95584.0,95581.0,0.095865]
[1733256027537,0.20924,95584.0,95581.0,0.095865]
[1733256027971,0.41848,95584.0,95581.0,0.095865]
[1733256028656,0.20924,95584.0,95581.0,0.095865]
[1733256028873,0.20924,95584.0,95583.0,0.09320546]
[1733256029087,0.20924,95584.0,95581.0,0.18907046]
[1733256029302,0.41848,95584.0,95581.0,0.19007046]
[1733256029541,0.20924,95584.0,95582.0,0.09320546]
[1733256030205,0.20924,95584.0,95581.0,0.096865]
[1733256030438,0.20924,95584.0,95581.0,0.095865]
[1733256030660,0.00095539,95588.0,95584.0,0.095865]
[1733256030877,0.0008632,95587.0,95585.0,0.095865]
[1733256031094,0.15,95586.0,95585.0,0.095865]
[1733256032976,0.15,95586.0,95578.0,0.18651109]
[1733256032977,0.173,95581.0,95575.0,0.09533594]
[1733256033195,0.15,95577.0,95575.0,0.04494952]
[1733256033419,0.15,95577.0,95575.0,0.0020804]
[1733256033420,0.023,95576.0,95575.0,0.0020804]